[Event "44th Chess Olympiad Open 2022"]
[Site "Chennai"]
[Date "2022.08.02"]
[Round "5.40"]
[White "Hassan, Tarek Ahmed"]
[Black "Waldhausen Gordon, Frederick"]
[Result "0-1"]
[WhiteElo "2209"]
[BlackElo "2028"]
[Annotator "NA RC"]
[PlyCount "93"]
[EventDate "2022.??.??"]
[TimeControl "60"]

1. e4 {[%emt 0:00:14]} c5 {[%emt 0:00:03]} 2. Nf3 {[%emt 0:00:27]} g6 {[%emt 0:
00:00]} 3. c3 {[%emt 0:02:08]} d5 {[%emt 0:00:05]} 4. e5 {[%emt 0:02:07]} Nc6 {
[%emt 0:00:13]} 5. Bb5 {[%emt 0:01:01]} Bg4 {[%emt 0:01:05]} 6. O-O {[%emt 0:
00:00]} Bg7 {[%emt 0:01:55]} 7. d4 {[%emt 0:00:52]} e6 {[%emt 0:02:21]} 8.
Bxc6+ {[%emt 0:03:19]} bxc6 {[%emt 0:00:19]} 9. Nbd2 {[%emt 0:00:09]} Ne7 {
[%emt 0:03:51]} 10. h3 {[%emt 0:03:07]} Bxf3 {[%emt 0:04:52]} 11. Nxf3 {
[%emt 0:00:34]} cxd4 {[%emt 0:02:36]} 12. cxd4 {[%emt 0:00:38]} O-O {[%emt 0:
00:00]} 13. Bg5 {[%emt 0:02:19]} h6 {[%emt 0:01:34]} 14. Bxe7 {[%emt 0:09:46]}
Qxe7 {[%emt 0:00:10]} 15. Qa4 {[%emt 0:00:30]} c5 {[%emt 0:06:19]} 16. Qa3 {
[%emt 0:02:46]} Rfc8 {[%emt 0:02:29]} 17. Rfc1 {[%emt 0:05:51]} Bf8 {[%emt 0:
00:00]} 18. dxc5 {[%emt 0:03:02]} Rxc5 {[%emt 0:00:22]} 19. Rxc5 {[%emt 0:00:
00]} Qxc5 {[%emt 0:00:16]} 20. Qxc5 {[%emt 0:00:26]} Bxc5 {[%emt 0:00:06]} 21.
Rc1 {[%emt 0:00:17]} Bb6 {[%emt 0:03:25]} 22. Kf1 {[%emt 0:04:43]} Kf8 {
[%emt 0:03:43]} 23. Ke2 {[%emt 0:00:29]} Ke8 {[%emt 0:00:17]} 24. Rc2 {[%emt 0:
00:00]} Kd7 {[%emt 0:04:06]} 25. Ne1 {[%emt 0:03:50]} a5 {[%emt 0:05:30]} 26.
Nd3 {[%emt 0:01:22]} a4 {[%emt 0:06:43]} 27. f4 {[%emt 0:01:25]} Rb8 {[%emt 0:
00:00]} 28. Kd2 {[%emt 0:06:25]} Bd4 {[%emt 0:03:17]} 29. Ke2 {[%emt 0:03:51]}
Rb7 {[%emt 0:03:21]} 30. Kf3 {[%emt 0:00:49]} Ke7 {[%emt 0:01:56]} 31. g4 {
[%emt 0:03:35]} f6 {[%emt 0:05:59]} 32. exf6+ {[%emt 0:11:24]} Kxf6 {[%emt 0:
00:00]} 33. Rc6 {[%emt 0:02:53]} Rb6 {[%emt 0:03:31]} 34. Rxb6 {[%emt 0:10:49]}
Bxb6 {[%emt 0:00:14]} 35. b3 {[%emt 0:07:38]} axb3 {[%emt 0:00:16]} 36. axb3 {
[%emt 0:00:08]} g5 {[%emt 0:00:39]} 37. b4 {[%emt 0:03:04]} Bd8 {[%emt 0:01:04]
} 38. Nc5 {[%emt 0:00:43]} gxf4 {[%emt 0:00:43]} 39. Kxf4 {[%emt 0:00:02]} e5+
{[%emt 0:00:19]} 40. Kf3 {[%emt 0:00:05]} Be7 {[%emt 0:08:10]} 41. Na6 {
[%emt 0:02:12]} e4+ {[%emt 0:02:33]} 42. Ke2 {[%emt 0:02:39]} Ke5 {[%emt 0:00:
00]} 43. b5 {[%emt 0:00:31]} d4 {[%emt 0:00:23]} 44. b6 {[%emt 0:00:25]} d3+ {
[%emt 0:00:28]} 45. Kd1 {[%emt 0:01:25]} e3 {[%emt 0:05:32]} 46. b7 {[%emt 0:
00:00]} e2+ {[%emt 0:00:15]} 47. Kd2 {[%emt 0:00:25]} 0-1

[Event "44th Chess Olympiad Open 2022"]
[Site "Chennai"]
[Date "2022.08.02"]
[Round "5.40"]
[White "Abdelazeez, Mohamed Abdalla"]
[Black "Olson, Hamish"]
[Result "1/2-1/2"]
[WhiteElo "2182"]
[BlackElo "2343"]
[Annotator "RC"]
[PlyCount "91"]
[EventDate "2022.??.??"]
[TimeControl "60"]

1. e4 {[%emt 0:00:04]} e5 {[%emt 0:00:08]} 2. Nf3 {[%emt 0:00:06]} Nc6 {
[%emt 0:00:09]} 3. d4 {[%emt 0:00:36]} exd4 {[%emt 0:00:15]} 4. Bc4 {[%emt 0:
00:00]} Nf6 {[%emt 0:00:16]} 5. e5 {[%emt 0:00:06]} d5 {[%emt 0:00:16]} 6. Bb5
{[%emt 0:00:06]} Ne4 {[%emt 0:00:10]} 7. Nxd4 {[%emt 0:00:09]} Bd7 {[%emt 0:00:
00]} 8. Bxc6 {[%emt 0:00:09]} bxc6 {[%emt 0:00:15]} 9. O-O {[%emt 0:00:22]} Bc5
{[%emt 0:00:33]} 10. f3 {[%emt 0:00:14]} Ng5 {[%emt 0:00:48]} 11. Be3 {[%emt 0:
00:00]} Bb6 {[%emt 0:01:59]} 12. f4 {[%emt 0:02:44]} Ne4 {[%emt 0:00:17]} 13.
Nd2 {[%emt 0:00:08]} Nxd2 {[%emt 0:01:25]} 14. Qxd2 {[%emt 0:00:06]} c5 {
[%emt 0:01:04]} 15. Nb3 {[%emt 0:00:10]} d4 {[%emt 0:01:45]} 16. Bf2 {[%emt 0:
00:00]} Bc6 {[%emt 0:13:34]} 17. f5 {[%emt 0:05:41]} Qd5 {[%emt 0:01:38]} 18.
Qg5 {[%emt 0:00:54]} h6 {[%emt 0:00:50]} 19. Qg3 {[%emt 0:06:41]} O-O-O {
[%emt 0:04:43]} 20. a4 {[%emt 0:00:08]} a5 {[%emt 0:01:26]} 21. Nd2 {[%emt 0:
00:00]} g6 {[%emt 0:12:00]} 22. f6 {[%emt 0:07:57]} h5 {[%emt 0:14:36]} 23. h4
{[%emt 0:08:59]} Qe6 {[%emt 0:02:56]} 24. Rfe1 {[%emt 0:02:06]} Rhe8 {[%emt 0:
00:00]} 25. Nf3 {[%emt 0:04:18]} Bxf3 {[%emt 0:04:56]} 26. Qxf3 {[%emt 0:06:58]
} Qd5 {[%emt 0:03:00]} 27. Qf4 {[%emt 0:18:08]} Re6 {[%emt 0:00:34]} 28. b3 {
[%emt 0:01:20]} c4 {[%emt 0:02:31]} 29. Rab1 {[%emt 0:05:39]} cxb3 {[%emt 0:00:
00]} 30. Rxb3 {[%emt 0:00:14]} Rde8 {[%emt 0:00:53]} 31. Rb5 {[%emt 0:01:02]}
Qc4 {[%emt 0:03:58]} 32. Qe4 {[%emt 0:00:08]} Rc6 {[%emt 0:00:48]} 33. Re2 {
[%emt 0:05:03]} Ree6 {[%emt 0:01:16]} 34. Rd5 {[%emt 0:00:49]} Qxa4 {[%emt 0:
00:00]} 35. Bxd4 {[%emt 0:00:10]} Rc4 {[%emt 0:01:29]} 36. Rd2 {[%emt 0:00:13]}
c6 {[%emt 0:04:27]} 37. Rd7 {[%emt 0:07:34]} Kxd7 {[%emt 0:05:18]} 38. Bxb6+ {
[%emt 0:00:11]} Kc8 {[%emt 0:00:14]} 39. Qd3 {[%emt 0:01:05]} Kb7 {[%emt 0:00:
00]} 40. Bf2 {[%emt 0:01:37]} Ka6 {[%emt 0:06:53]} 41. Qd8 {[%emt 0:32:26]} Qb4
{[%emt 0:08:15]} 42. c3 {[%emt 0:00:00]} Rxc3 {[%emt 0:03:33]} 43. Rd4 {
[%emt 0:00:00]} Qb1+ {[%emt 0:04:52]} 44. Kh2 {[%emt 0:00:00]} c5 {[%emt 0:00:
00]} 45. Qa8+ {[%emt 0:00:00]} Kb5 {[%emt 0:00:16]} 46. Qb8+ {[%emt 0:00:00]}
1/2-1/2

[Event "44th Chess Olympiad Open 2022"]
[Site "Chennai"]
[Date "2022.08.02"]
[Round "5.41"]
[White "Cawdery, Daniel"]
[Black "Isaakidis, Alexandros"]
[Result "0-1"]
[WhiteElo "2417"]
[BlackElo "2165"]
[Annotator "RC"]
[PlyCount "80"]
[EventDate "2022.??.??"]
[TimeControl "60"]

1. e4 {[%emt 0:00:04]} c6 {[%emt 0:00:07]} 2. d4 {[%emt 0:00:48]} d5 {[%emt 0:
00:00]} 3. e5 {[%emt 0:00:23]} Bf5 {[%emt 0:00:09]} 4. h4 {[%emt 0:00:37]} a6 {
[%emt 0:01:42]} 5. g4 {[%emt 0:06:47]} Bd7 {[%emt 0:00:15]} 6. Nc3 {[%emt 0:00:
00]} c5 {[%emt 0:08:37]} 7. dxc5 {[%emt 0:02:16]} e6 {[%emt 0:07:31]} 8. Be3 {
[%emt 0:03:59]} Qc7 {[%emt 0:04:56]} 9. Nf3 {[%emt 0:02:05]} Bxc5 {[%emt 0:00:
00]} 10. Qd2 {[%emt 0:00:52]} Ne7 {[%emt 0:13:03]} 11. O-O-O {[%emt 0:00:56]}
Bxe3 {[%emt 0:01:03]} 12. Qxe3 {[%emt 0:00:16]} Nbc6 {[%emt 0:00:52]} 13. h5 {
[%emt 0:07:01]} Rc8 {[%emt 0:15:28]} 14. h6 {[%emt 0:03:06]} g6 {[%emt 0:02:06]
} 15. Qf4 {[%emt 0:09:29]} f6 {[%emt 0:06:46]} 16. Qd2 {[%emt 0:43:52]} fxe5 {
[%emt 0:02:49]} 17. Ng5 {[%emt 0:01:02]} O-O {[%emt 0:03:50]} 18. Bd3 {[%emt 0:
00:00]} b5 {[%emt 0:03:59]} 19. Kb1 {[%emt 0:00:33]} b4 {[%emt 0:01:36]} 20.
Ne2 {[%emt 0:00:47]} Rxf2 {[%emt 0:00:18]} 21. Rdf1 {[%emt 0:02:14]} Rcf8 {
[%emt 0:00:48]} 22. Qe1 {[%emt 0:00:57]} Qb6 {[%emt 0:01:47]} 23. Ng3 {[%emt 0:
00:00]} Qd4 {[%emt 0:04:49]} 24. Rfg1 {[%emt 0:03:05]} e4 {[%emt 0:03:21]} 25.
Bxe4 {[%emt 0:01:30]} dxe4 {[%emt 0:00:24]} 26. N3xe4 {[%emt 0:00:43]} R2f4 {
[%emt 0:01:48]} 27. Qe2 {[%emt 0:00:27]} Nd5 {[%emt 0:07:10]} 28. Rd1 {[%emt 0:
00:00]} Qb6 {[%emt 0:01:46]} 29. Ka1 {[%emt 0:01:27]} b3 {[%emt 0:01:04]} 30.
cxb3 {[%emt 0:00:33]} Nd4 {[%emt 0:01:18]} 31. Qd2 {[%emt 0:01:17]} e5 {
[%emt 0:00:34]} 32. Rhe1 {[%emt 0:02:00]} Bxg4 {[%emt 0:00:47]} 33. Rc1 {
[%emt 0:00:07]} Nb4 {[%emt 0:01:31]} 34. Nc5 {[%emt 0:02:07]} Rf2 {[%emt 0:00:
00]} 35. Qc3 {[%emt 0:00:47]} Nbc2+ {[%emt 0:00:56]} 36. Kb1 {[%emt 0:00:02]}
Nxe1 {[%emt 0:00:51]} 37. Qc4+ {[%emt 0:00:00]} Kh8 {[%emt 0:00:33]} 38. Nce4 {
[%emt 0:00:01]} Rf1 {[%emt 0:00:50]} 39. Qd5 {[%emt 0:01:06]} Qc7 {[%emt 0:00:
00]} 40. Nf7+ {[%emt 0:02:46]} R8xf7 {[%emt 0:00:34]} 0-1

[Event "44th Chess Olympiad Open 2022"]
[Site "Chennai"]
[Date "2022.08.02"]
[Round "5.41"]
[White "Kobese, Watu"]
[Black "Antoniou, Rafail"]
[Result "1-0"]
[WhiteElo "2311"]
[BlackElo "1817"]
[Annotator "RC"]
[PlyCount "63"]
[EventDate "2022.??.??"]
[TimeControl "60"]

1. e4 {[%emt 0:00:04]} c5 {[%emt 0:00:15]} 2. Nf3 {[%emt 0:00:10]} e6 {[%emt 0:
00:00]} 3. d4 {[%emt 0:00:07]} cxd4 {[%emt 0:00:04]} 4. Nxd4 {[%emt 0:00:05]}
Nf6 {[%emt 0:01:11]} 5. Nc3 {[%emt 0:00:08]} Nc6 {[%emt 0:00:39]} 6. a3 {
[%emt 0:00:26]} d5 {[%emt 0:03:26]} 7. Bb5 {[%emt 0:00:18]} Bd7 {[%emt 0:04:27]
} 8. exd5 {[%emt 0:00:27]} Nxd5 {[%emt 0:03:21]} 9. Nxd5 {[%emt 0:02:35]} exd5
{[%emt 0:02:36]} 10. O-O {[%emt 0:00:35]} Be7 {[%emt 0:00:25]} 11. Ne2 {
[%emt 0:07:22]} Bf5 {[%emt 0:04:10]} 12. Ng3 {[%emt 0:14:11]} Bg6 {[%emt 0:00:
00]} 13. Kh1 {[%emt 0:10:32]} O-O {[%emt 0:16:53]} 14. f4 {[%emt 0:01:10]} Be4
{[%emt 0:06:06]} 15. Nxe4 {[%emt 0:18:30]} dxe4 {[%emt 0:00:05]} 16. Be3 {
[%emt 0:01:12]} Qa5 {[%emt 0:08:39]} 17. Qe2 {[%emt 0:01:17]} Bf6 {[%emt 0:00:
00]} 18. c3 {[%emt 0:06:05]} a6 {[%emt 0:04:59]} 19. Bc4 {[%emt 0:00:18]} Rfe8
{[%emt 0:05:14]} 20. g4 {[%emt 0:05:24]} Be7 {[%emt 0:05:19]} 21. Qf2 {[%emt 0:
00:00]} Bf8 {[%emt 0:04:35]} 22. Rad1 {[%emt 0:02:39]} Qa4 {[%emt 0:01:21]} 23.
Qe2 {[%emt 0:03:52]} Rad8 {[%emt 0:00:57]} 24. b3 {[%emt 0:03:09]} Qa5 {
[%emt 0:02:43]} 25. Bxf7+ {[%emt 0:01:43]} Kxf7 {[%emt 0:00:03]} 26. Qc4+ {
[%emt 0:00:10]} Ke7 {[%emt 0:02:16]} 27. Qxe4+ {[%emt 0:04:14]} Ne5 {[%emt 0:
00:00]} 28. fxe5 {[%emt 0:00:49]} Rxd1 {[%emt 0:00:43]} 29. Bg5+ {[%emt 0:00:
00]} Kd7 {[%emt 0:02:10]} 30. Qxb7+ {[%emt 0:00:26]} Ke6 {[%emt 0:00:20]} 31.
Qf7+ {[%emt 0:00:08]} Kxe5 {[%emt 0:02:12]} 32. Qxe8+ {[%emt 0:00:26]} 1-0

[Event "44th Chess Olympiad Open 2022"]
[Site "Chennai"]
[Date "2022.08.02"]
[Round "5.41"]
[White "Michaelides, Konstantinos"]
[Black "Solomon, Kenny"]
[Result "1/2-1/2"]
[WhiteElo "2300"]
[BlackElo "2355"]
[Annotator "RC"]
[PlyCount "167"]
[EventDate "2022.??.??"]
[TimeControl "60"]

1. d4 {[%emt 0:00:07]} Nf6 {[%emt 0:00:09]} 2. Nf3 {[%emt 0:00:15]} d5 {
[%emt 0:00:05]} 3. c4 {[%emt 0:00:13]} e6 {[%emt 0:00:03]} 4. g3 {[%emt 0:00:
00]} Bb4+ {[%emt 0:00:05]} 5. Bd2 {[%emt 0:00:06]} Be7 {[%emt 0:00:05]} 6. Bg2
{[%emt 0:00:23]} O-O {[%emt 0:00:08]} 7. O-O {[%emt 0:00:27]} Nbd7 {[%emt 0:00:
00]} 8. Qc2 {[%emt 0:00:19]} c6 {[%emt 0:00:06]} 9. Bg5 {[%emt 0:01:29]} h6 {
[%emt 0:14:21]} 10. Bxf6 {[%emt 0:00:16]} Nxf6 {[%emt 0:01:11]} 11. Nbd2 {
[%emt 0:00:06]} b6 {[%emt 0:05:53]} 12. e4 {[%emt 0:00:43]} Bb7 {[%emt 0:04:07]
} 13. e5 {[%emt 0:00:59]} Nd7 {[%emt 0:00:09]} 14. cxd5 {[%emt 0:00:06]} cxd5 {
[%emt 0:00:08]} 15. Rfc1 {[%emt 0:00:26]} Rc8 {[%emt 0:02:33]} 16. Qd1 {
[%emt 0:06:19]} Nb8 {[%emt 0:03:17]} 17. Bf1 {[%emt 0:03:32]} Nc6 {[%emt 0:00:
00]} 18. Nb1 {[%emt 0:05:38]} f6 {[%emt 0:05:09]} 19. Bb5 {[%emt 0:15:38]} f5 {
[%emt 0:08:43]} 20. Nc3 {[%emt 0:02:30]} a6 {[%emt 0:10:15]} 21. Bd3 {[%emt 0:
00:00]} g5 {[%emt 0:06:16]} 22. Ne2 {[%emt 0:06:42]} Qe8 {[%emt 0:06:29]} 23.
Ne1 {[%emt 0:13:14]} Qh5 {[%emt 0:04:22]} 24. f4 {[%emt 0:06:35]} gxf4 {
[%emt 0:05:35]} 25. Nxf4 {[%emt 0:04:50]} Qxd1 {[%emt 0:00:06]} 26. Rxd1 {
[%emt 0:00:02]} Nxd4 {[%emt 0:00:45]} 27. Ng6 {[%emt 0:01:29]} Bc5 {[%emt 0:00:
00]} 28. Nxf8 {[%emt 0:00:51]} Rxf8 {[%emt 0:00:14]} 29. Kg2 {[%emt 0:10:20]}
Nc6 {[%emt 0:01:43]} 30. Nf3 {[%emt 0:00:30]} Be3 {[%emt 0:00:42]} 31. Kf1 {
[%emt 0:03:26]} h5 {[%emt 0:03:16]} 32. Ke2 {[%emt 0:00:54]} Bh6 {[%emt 0:00:
00]} 33. Rg1 {[%emt 0:01:32]} Bg7 {[%emt 0:01:08]} 34. Kd2 {[%emt 0:02:26]}
Bh6+ {[%emt 0:01:15]} 35. Ke2 {[%emt 0:00:33]} Kf7 {[%emt 0:00:46]} 36. h3 {
[%emt 0:01:57]} Rg8 {[%emt 0:00:29]} 37. Raf1 {[%emt 0:03:18]} Ke7 {[%emt 0:00:
00]} 38. Nh4 {[%emt 0:00:45]} Bg5 {[%emt 0:02:05]} 39. Nf3 {[%emt 0:00:25]} Bh6
{[%emt 0:01:04]} 40. Nh4 {[%emt 0:01:02]} Nxe5 {[%emt 0:02:06]} 41. Rxf5 {
[%emt 0:16:28]} exf5 {[%emt 0:05:18]} 42. Nxf5+ {[%emt 0:00:07]} Ke6 {[%emt 0:
00:00]} 43. Nxh6 {[%emt 0:00:22]} Rf8 {[%emt 0:07:20]} 44. g4 {[%emt 0:03:03]}
hxg4 {[%emt 0:00:53]} 45. hxg4 {[%emt 0:01:19]} Nxd3 {[%emt 0:05:22]} 46. Kxd3
{[%emt 0:01:04]} Rf3+ {[%emt 0:00:02]} 47. Ke2 {[%emt 0:03:56]} d4 {[%emt 0:00:
00]} 48. g5 {[%emt 0:01:51]} d3+ {[%emt 0:00:01]} 49. Ke1 {[%emt 0:02:05]} Rh3
{[%emt 0:01:12]} 50. g6 {[%emt 0:01:36]} Rh2 {[%emt 0:00:07]} 51. Rg3 {[%emt 0:
00:00]} Be4 {[%emt 0:03:02]} 52. g7 {[%emt 0:01:15]} Bh7 {[%emt 0:00:45]} 53.
g8=Q+ {[%emt 0:02:27]} Bxg8 {[%emt 0:00:02]} 54. Nxg8 {[%emt 0:00:05]} Rxb2 {
[%emt 0:00:19]} 55. Rxd3 {[%emt 0:00:58]} Rxa2 {[%emt 0:00:05]} 56. Nh6 {
[%emt 0:00:31]} Rg2 {[%emt 0:00:51]} 57. Rb3 {[%emt 0:00:31]} b5 {[%emt 0:00:
00]} 58. Ra3 {[%emt 0:00:18]} Kd5 {[%emt 0:00:36]} 59. Nf5 {[%emt 0:00:23]} Rg5
{[%emt 0:01:03]} 60. Ne3+ {[%emt 0:00:21]} Ke4 {[%emt 0:01:01]} 61. Nc2 {
[%emt 0:00:23]} Rg1+ {[%emt 0:00:47]} 62. Kd2 {[%emt 0:00:12]} Rg2+ {[%emt 0:
00:00]} 63. Kc1 {[%emt 0:00:15]} Rg1+ {[%emt 0:01:12]} 64. Kb2 {[%emt 0:00:11]}
Rg6 {[%emt 0:00:12]} 65. Rh3 {[%emt 0:01:06]} Kd5 {[%emt 0:00:34]} 66. Nb4+ {
[%emt 0:00:33]} Kc5 {[%emt 0:00:12]} 67. Nd3+ {[%emt 0:00:05]} Kb6 {[%emt 0:00:
00]} 68. Kb3 {[%emt 0:00:53]} Rd6 {[%emt 0:00:23]} 69. Ne5 {[%emt 0:00:49]} Re6
{[%emt 0:00:37]} 70. Re3 {[%emt 0:00:49]} Rd6 {[%emt 0:00:16]} 71. Rc3 {
[%emt 0:00:18]} Rd5 {[%emt 0:00:28]} 72. Rc6+ {[%emt 0:00:26]} Kb7 {[%emt 0:00:
00]} 73. Re6 {[%emt 0:00:02]} a5 {[%emt 0:00:59]} 74. Nc6 {[%emt 0:01:01]} Rd3+
{[%emt 0:00:21]} 75. Kc2 {[%emt 0:00:22]} Ra3 {[%emt 0:00:25]} 76. Nd4 {
[%emt 0:00:26]} b4 {[%emt 0:00:28]} 77. Kb2 {[%emt 0:00:34]} Rh3 {[%emt 0:00:
00]} 78. Rg6 {[%emt 0:01:04]} a4 {[%emt 0:00:18]} 79. Rg2 {[%emt 0:00:29]} Kb6
{[%emt 0:00:19]} 80. Nc2 {[%emt 0:00:31]} a3+ {[%emt 0:00:09]} 81. Ka2 {
[%emt 0:00:36]} b3+ {[%emt 0:00:10]} 82. Kxa3 {[%emt 0:00:09]} bxc2+ {[%emt 0:
00:00]} 83. Kb2 {[%emt 0:00:02]} c1=Q+ {[%emt 0:00:28]} 84. Kxc1 {[%emt 0:00:
00]} 1/2-1/2

[Event "44th Chess Olympiad Open 2022"]
[Site "Chennai"]
[Date "2022.08.02"]
[Round "5.41"]
[White "Damianou, Ioannis"]
[Black "Mhango, Banele"]
[Result "0-1"]
[WhiteElo "2153"]
[BlackElo "2238"]
[Annotator "NA RC"]
[PlyCount "68"]
[EventDate "2022.??.??"]
[TimeControl "60"]

1. c4 {[%emt 0:00:05]} c5 {[%emt 0:00:32]} 2. g3 {[%emt 0:01:10]} Nc6 {[%emt 0:
00:00]} 3. Bg2 {[%emt 0:00:07]} g6 {[%emt 0:00:57]} 4. Nc3 {[%emt 0:00:22]} Bg7
{[%emt 0:00:06]} 5. e4 {[%emt 0:00:22]} d6 {[%emt 0:03:35]} 6. Nge2 {[%emt 0:
00:00]} e6 {[%emt 0:02:28]} 7. d3 {[%emt 0:00:48]} Nge7 {[%emt 0:00:37]} 8. O-O
{[%emt 0:00:30]} O-O {[%emt 0:01:23]} 9. Rb1 {[%emt 0:04:01]} b6 {[%emt 0:00:
00]} 10. Be3 {[%emt 0:04:11]} Nd4 {[%emt 0:06:01]} 11. b4 {[%emt 0:02:23]} Bb7
{[%emt 0:03:32]} 12. Qd2 {[%emt 0:02:54]} Re8 {[%emt 0:00:15]} 13. Bh6 {
[%emt 0:05:40]} Bh8 {[%emt 0:06:19]} 14. a3 {[%emt 0:22:16]} Nec6 {[%emt 0:00:
00]} 15. h3 {[%emt 0:05:27]} Qd7 {[%emt 0:06:09]} 16. g4 {[%emt 0:09:54]} Nxe2+
{[%emt 0:08:53]} 17. Nxe2 {[%emt 0:00:28]} Nd4 18. Nc3 {[%emt 0:12:07]} cxb4 {
[%emt 0:06:17]} 19. Rxb4 {[%emt 0:00:00]} Rac8 20. Kh1 {[%emt 0:07:21]} Rc5 {
[%emt 0:02:08]} 21. f4 {[%emt 0:00:00]} f5 {[%emt 0:06:59]} 22. gxf5 {[%emt 0:
00:00]} exf5 {[%emt 0:02:02]} 23. Rbb1 {[%emt 0:00:00]} fxe4 {[%emt 0:02:57]}
24. dxe4 {[%emt 0:00:00]} Rh5 {[%emt 0:01:38]} 25. f5 {[%emt 0:00:00]} Nxf5 {
[%emt 0:06:53]} 26. Bf4 {[%emt 0:06:21]} Nh4 {[%emt 0:04:02]} 27. Nd5 {[%emt 0:
00:00]} Nxg2 {[%emt 0:00:14]} 28. Qxg2 {[%emt 0:00:43]} Rxh3+ {[%emt 0:00:36]}
29. Kg1 {[%emt 0:06:28]} Bd4+ {[%emt 0:00:16]} 30. Rf2 {[%emt 0:01:41]} Bxd5 {
[%emt 0:00:30]} 31. cxd5 {[%emt 0:01:26]} Bxf2+ {[%emt 0:01:09]} 32. Kxf2 {
[%emt 0:00:52]} Rf8 {[%emt 0:00:18]} 33. Qg5 {[%emt 0:01:21]} Rh5 {[%emt 0:00:
00]} 34. Qg4 {[%emt 0:01:16]} Qxg4 {[%emt 0:00:35]} 0-1

[Event "44th Chess Olympiad Open 2022"]
[Site "Chennai"]
[Date "2022.08.02"]
[Round "5.42"]
[White "Tologontegin, Semetey"]
[Black "Othman, A. Moussa"]
[Result "1/2-1/2"]
[WhiteElo "2378"]
[BlackElo "2229"]
[Annotator "RC"]
[PlyCount "122"]
[EventDate "2022.??.??"]
[TimeControl "60"]

1. d4 {[%emt 0:00:02]} Nf6 {[%emt 0:00:09]} 2. Nc3 {[%emt 0:00:08]} d6 {
[%emt 0:00:37]} 3. Bf4 {[%emt 0:00:32]} a6 {[%emt 0:01:27]} 4. e4 {[%emt 0:00:
00]} g6 {[%emt 0:09:09]} 5. Be2 {[%emt 0:04:09]} Bg7 {[%emt 0:00:11]} 6. Qd2 {
[%emt 0:03:29]} b5 {[%emt 0:05:18]} 7. Bf3 {[%emt 0:09:07]} Bb7 {[%emt 0:05:15]
} 8. O-O-O {[%emt 0:12:57]} b4 {[%emt 0:12:34]} 9. Nd5 {[%emt 0:00:21]} Bxd5 {
[%emt 0:00:19]} 10. exd5 {[%emt 0:00:09]} a5 {[%emt 0:00:13]} 11. Bh6 {[%emt 0:
00:00]} Bxh6 {[%emt 0:03:23]} 12. Qxh6 {[%emt 0:00:07]} b3 {[%emt 0:03:32]} 13.
axb3 {[%emt 0:00:39]} a4 {[%emt 0:00:06]} 14. bxa4 {[%emt 0:00:05]} Rxa4 {
[%emt 0:00:19]} 15. Ne2 {[%emt 0:00:05]} Nbd7 {[%emt 0:06:04]} 16. Nc3 {
[%emt 0:02:40]} Rb4 {[%emt 0:09:01]} 17. b3 {[%emt 0:12:26]} Qa8 {[%emt 0:00:
00]} 18. Kb2 {[%emt 0:00:06]} Qb7 {[%emt 0:02:08]} 19. Rhe1 {[%emt 0:04:32]}
Qb6 {[%emt 0:08:05]} 20. g4 {[%emt 0:01:35]} Kd8 {[%emt 0:06:56]} 21. Qe3 {
[%emt 0:10:54]} Ng8 {[%emt 0:00:35]} 22. Na2 {[%emt 0:01:03]} Ra4 {[%emt 0:00:
00]} 23. c3 {[%emt 0:03:06]} h6 {[%emt 0:00:43]} 24. Ra1 {[%emt 0:00:29]} Ke8 {
[%emt 0:00:34]} 25. h4 {[%emt 0:11:33]} Kf8 {[%emt 0:00:12]} 26. g5 {[%emt 0:
00:00]} hxg5 {[%emt 0:00:05]} 27. hxg5 {[%emt 0:00:02]} Kg7 {[%emt 0:00:57]}
28. Rh1 {[%emt 0:04:32]} Rxh1 {[%emt 0:00:13]} 29. Rxh1 {[%emt 0:00:02]} Ra8 {
[%emt 0:00:25]} 30. Nb4 {[%emt 0:02:13]} Qa5 {[%emt 0:00:35]} 31. Qf4 {[%emt 0:
00:00]} Qa3+ {[%emt 0:01:04]} 32. Kc2 {[%emt 0:00:06]} Rb8 {[%emt 0:00:21]} 33.
Be4 {[%emt 0:04:11]} Rxb4 {[%emt 0:00:13]} 34. cxb4 {[%emt 0:00:30]} Qxb4 {
[%emt 0:00:11]} 35. Qd2 {[%emt 0:04:33]} Qa3 {[%emt 0:01:08]} 36. Qc3 {[%emt 0:
00:00]} Qa2+ {[%emt 0:00:08]} 37. Qb2 {[%emt 0:00:04]} Qa6 {[%emt 0:00:12]} 38.
Kd2 {[%emt 0:01:35]} Nb6 {[%emt 0:00:27]} 39. Qc3 {[%emt 0:01:38]} Qb5 {
[%emt 0:00:28]} 40. Qh3 {[%emt 0:02:04]} Nxd5 {[%emt 0:00:47]} 41. Qh8+ {
[%emt 0:06:14]} Kf8 {[%emt 0:00:04]} 42. Bxd5 {[%emt 0:18:48]} Qxd5 {[%emt 0:
00:00]} 43. Kc3 {[%emt 0:00:15]} Qxg5 {[%emt 0:01:46]} 44. Ra1 {[%emt 0:00:04]}
Qd5 {[%emt 0:00:44]} 45. Kb2 {[%emt 0:02:14]} Qf3 {[%emt 0:04:06]} 46. Ra5 {
[%emt 0:00:52]} e6 {[%emt 0:03:03]} 47. Ka3 {[%emt 0:00:32]} Qb7 {[%emt 0:00:
00]} 48. f4 {[%emt 0:01:49]} Qb8 {[%emt 0:02:36]} 49. Ra4 {[%emt 0:00:51]} Qb7
{[%emt 0:02:50]} 50. Rc4 {[%emt 0:00:47]} Qa8+ {[%emt 0:00:13]} 51. Kb2 {
[%emt 0:00:03]} Qd8 {[%emt 0:02:55]} 52. Rc2 {[%emt 0:03:08]} Ke7 {[%emt 0:00:
00]} 53. d5 {[%emt 0:01:48]} Nf6 {[%emt 0:02:17]} 54. Qh4 {[%emt 0:00:01]} exd5
{[%emt 0:01:42]} 55. f5 {[%emt 0:00:01]} gxf5 {[%emt 0:01:26]} 56. Qg5 {
[%emt 0:00:08]} Qh8 {[%emt 0:01:19]} 57. Rxc7+ {[%emt 0:00:20]} Ke6 {[%emt 0:
00:00]} 58. Ka3 {[%emt 0:01:51]} Qa8+ {[%emt 0:00:37]} 59. Kb2 {[%emt 0:00:03]}
Qh8 {[%emt 0:00:01]} 60. Ka3 {[%emt 0:00:13]} Qa8+ {[%emt 0:00:12]} 61. Kb2 {
[%emt 0:00:01]} Qh8 {[%emt 0:00:08]} 1/2-1/2

[Event "44th Chess Olympiad Open 2022"]
[Site "Chennai"]
[Date "2022.08.02"]
[Round "5.42"]
[White "Abdyjapar, Asyl"]
[Black "Sultan, Ibrahim"]
[Result "1-0"]
[WhiteElo "2306"]
[BlackElo "2108"]
[Annotator "RC"]
[PlyCount "61"]
[EventDate "2022.??.??"]
[TimeControl "60"]

1. e4 {[%emt 0:00:01]} e5 {[%emt 0:00:12]} 2. Nf3 {[%emt 0:00:18]} Nc6 {
[%emt 0:00:17]} 3. Bb5 {[%emt 0:00:03]} a6 {[%emt 0:00:21]} 4. Ba4 {[%emt 0:00:
00]} Nf6 {[%emt 0:00:12]} 5. O-O {[%emt 0:00:05]} Be7 {[%emt 0:00:11]} 6. Re1 {
[%emt 0:00:04]} b5 {[%emt 0:00:14]} 7. Bb3 {[%emt 0:00:05]} d6 {[%emt 0:00:56]}
8. c3 {[%emt 0:00:21]} O-O {[%emt 0:00:11]} 9. h3 {[%emt 0:00:02]} Na5 {
[%emt 0:00:10]} 10. Bc2 {[%emt 0:00:07]} c5 {[%emt 0:00:04]} 11. d4 {[%emt 0:
00:00]} Qc7 {[%emt 0:00:08]} 12. Nbd2 {[%emt 0:00:06]} cxd4 {[%emt 0:00:59]}
13. cxd4 {[%emt 0:00:04]} Bd7 {[%emt 0:00:10]} 14. Nf1 {[%emt 0:00:31]} Nc6 {
[%emt 0:00:18]} 15. Ne3 {[%emt 0:01:48]} Nb4 {[%emt 0:13:07]} 16. Bb1 {[%emt 0:
00:00]} a5 {[%emt 0:01:58]} 17. a3 {[%emt 0:02:01]} Na6 {[%emt 0:00:06]} 18. b3
{[%emt 0:00:43]} Rfe8 {[%emt 0:06:17]} 19. Bb2 {[%emt 0:00:44]} exd4 {[%emt 0:
00:00]} 20. Nxd4 {[%emt 0:00:05]} g6 {[%emt 0:00:14]} 21. Qf3 {[%emt 0:05:40]}
Nc5 {[%emt 0:06:59]} 22. Bc2 {[%emt 0:01:57]} Qd8 {[%emt 0:00:49]} 23. Rad1 {
[%emt 0:03:35]} Ne6 {[%emt 0:07:00]} 24. Nxe6 {[%emt 0:01:08]} fxe6 {[%emt 0:
00:00]} 25. e5 {[%emt 0:02:08]} dxe5 {[%emt 0:00:35]} 26. Bxe5 {[%emt 0:00:10]}
Rf8 {[%emt 0:00:29]} 27. Ng4 {[%emt 0:06:58]} Nxg4 {[%emt 0:14:13]} 28. Qxg4 {
[%emt 0:01:23]} Rf5 {[%emt 0:00:13]} 29. Bxf5 {[%emt 0:00:35]} exf5 {[%emt 0:
00:00]} 30. Qf3 {[%emt 0:00:10]} Qc8 {[%emt 0:02:06]} 31. Rxd7 {[%emt 0:00:12]}
1-0